[Event "Titled Tuesday Blitz August 24 2021"]
[White "Fedoseev, Vladimir"]
[Black "Jobava, Baadur"]
[WhiteFideId "24130737"]
[BlackFideId "13601520"]
[WhiteElo "2756"]
[BlackElo "2748"]
[Result "1/2-1/2"]
[Round "07"]
[TimeControl "180+1"]
[Date "2021.08.24"]
[WhiteClock "0:00:43"]
[BlackClock "0:00:55"]

1. b3 {[%clk 0:02:59]}  c6 {[%clk 0:03:00]} 2. Bb2 {[%clk 0:02:59]}  d5 {[%clk 0:03:01]} 3. Nf3 {[%clk 0:02:59]}  Nf6 {[%clk 0:03:02]} 4. e3 {[%clk 0:02:59]}  Bg4 {[%clk 0:03:02]} 5. Be2 {[%clk 0:02:59]}  e6 {[%clk 0:03:02]} 6. h3 {[%clk 0:02:58]}  Bxf3 {[%clk 0:03:01]} 7. Bxf3 {[%clk 0:02:57]}  Nbd7 {[%clk 0:03:02]} 8. c4 {[%clk 0:02:56]}  g6 {[%clk 0:03:02]} 9. O-O {[%clk 0:02:56]}  Bg7 {[%clk 0:03:01]} 10. Qc2 {[%clk 0:02:55]}  O-O {[%clk 0:03:01]} 11. Nc3 {[%clk 0:02:54]}  Re8 {[%clk 0:02:58]} 12. Rad1 {[%clk 0:02:52]}  Rc8 {[%clk 0:02:58]} 13. g3 {[%clk 0:02:52]}  a6 {[%clk 0:02:58]} 14. Bg2 {[%clk 0:02:51]}  h5 {[%clk 0:02:58]} 15. Ne2 {[%clk 0:02:48]}  Nh7 {[%clk 0:02:54]} 16. Bxg7 {[%clk 0:02:43]}  Kxg7 {[%clk 0:02:54]} 17. d3 {[%clk 0:02:42]}  Nhf6 {[%clk 0:02:54]} 18. b4 {[%clk 0:02:41]}  e5 {[%clk 0:02:53]} 19. a4 {[%clk 0:02:40]}  a5 {[%clk 0:02:49]} 20. Rb1 {[%clk 0:02:38]}  axb4 {[%clk 0:02:34]} 21. Rxb4 {[%clk 0:02:37]}  b6 {[%clk 0:02:34]} 22. Rc1 {[%clk 0:02:32]}  d4 {[%clk 0:02:27]} 23. exd4 {[%clk 0:02:26]}  exd4 {[%clk 0:02:27]} 24. Rcb1 {[%clk 0:02:17]}  Qe7 {[%clk 0:02:13]} 25. R4b2 {[%clk 0:02:15]}  Qd6 {[%clk 0:02:10]} 26. Qd2 {[%clk 0:02:08]}  Ra8 {[%clk 0:01:52]} 27. Qf4 {[%clk 0:02:01]}  Qxf4 {[%clk 0:01:50]} 28. gxf4 {[%clk 0:02:00]}  Rxa4 {[%clk 0:01:41]} 29. Bxc6 {[%clk 0:01:59]}  Ra3 {[%clk 0:01:42]} 30. Rd2 {[%clk 0:01:48]}  Rd8 {[%clk 0:01:35]} 31. Bxd7 {[%clk 0:01:15]}  Nxd7 {[%clk 0:01:36]} 32. Nxd4 {[%clk 0:01:15]}  Nc5 {[%clk 0:01:37]} 33. Nc2 {[%clk 0:01:15]}  Raxd3 {[%clk 0:01:30]} 34. Rxd3 {[%clk 0:01:14]}  Rxd3 {[%clk 0:01:28]} 35. Ne3 {[%clk 0:01:13]}  Rb3 {[%clk 0:01:22]} 36. Rxb3 {[%clk 0:01:08]}  Nxb3 {[%clk 0:01:22]} 37. Nd5 {[%clk 0:01:09]}  Nd4 {[%clk 0:01:20]} 38. Nxb6 {[%clk 0:00:59]}  Ne2+ {[%clk 0:01:19]} 39. Kg2 {[%clk 0:00:59]}  Nxf4+ {[%clk 0:01:20]} 40. Kg3 {[%clk 0:00:59]}  Ne6 {[%clk 0:01:15]} 41. Nd5 {[%clk 0:00:58]}  g5 {[%clk 0:01:11]} 42. h4 {[%clk 0:00:55]}  f6 {[%clk 0:01:07]} 43. f4 {[%clk 0:00:48]}  gxh4+ {[%clk 0:00:54]} 44. Kxh4 {[%clk 0:00:47]}  Kg6 {[%clk 0:00:54]} 45. Ne7+ {[%clk 0:00:42]}  Kf7 {[%clk 0:00:54]} 46. Nd5 {[%clk 0:00:43]}  Kg6 {[%clk 0:00:54]} 47. Ne7+ {[%clk 0:00:43]}  Kf7 {[%clk 0:00:54]} 48. Nd5 {[%clk 0:00:43]}  Kg6 {[%clk 0:00:55]} 1/2-1/2


[Site "https://www.chess.com"]

[Event "Titled Tuesday Blitz August 24 2021"]
[White "Gelman, Alexander"]
[Black "Dmitrenko, Viktor"]
[WhiteFideId "4118316"]
[BlackFideId "14110270"]
[WhiteElo "2375"]
[BlackElo "2338"]
[Result "1-0"]
[Round "07"]
[TimeControl "180+1"]
[Date "2021.08.24"]
[WhiteClock "0:00:39"]
[BlackClock "0:00:56"]

1. d4 {[%clk 0:03:00]}  e6 {[%clk 0:02:58]} 2. Nc3 {[%clk 0:03:01]}  d5 {[%clk 0:02:59]} 3. Bf4 {[%clk 0:03:01]}  a6 {[%clk 0:02:58]} 4. e4 {[%clk 0:03:01]}  Nf6 {[%clk 0:02:54]} 5. e5 {[%clk 0:02:52]}  Nfd7 {[%clk 0:02:52]} 6. Nce2 {[%clk 0:02:52]}  c5 {[%clk 0:02:51]} 7. c3 {[%clk 0:02:52]}  Nc6 {[%clk 0:02:48]} 8. a3 {[%clk 0:02:50]}  a5 {[%clk 0:02:40]} 9. Nf3 {[%clk 0:02:49]}  a4 {[%clk 0:02:36]} 10. h4 {[%clk 0:02:48]}  h6 {[%clk 0:02:35]} 11. h5 {[%clk 0:02:47]}  b6 {[%clk 0:02:32]} 12. Ng3 {[%clk 0:02:38]}  Qc7 {[%clk 0:02:30]} 13. Bd3 {[%clk 0:02:35]}  Be7 {[%clk 0:02:23]} 14. O-O {[%clk 0:02:33]}  Ba6 {[%clk 0:02:13]} 15. Bxa6 {[%clk 0:02:31]}  Rxa6 {[%clk 0:02:13]} 16. Qd3 {[%clk 0:02:31]}  Qb7 {[%clk 0:02:09]} 17. Rfe1 {[%clk 0:02:08]}  Na5 {[%clk 0:02:03]} 18. Rad1 {[%clk 0:02:06]}  Nc4 {[%clk 0:01:57]} 19. Re2 {[%clk 0:02:05]}  b5 {[%clk 0:01:56]} 20. Nh2 {[%clk 0:01:56]}  b4 {[%clk 0:01:55]} 21. cxb4 {[%clk 0:01:52]}  cxb4 {[%clk 0:01:55]} 22. Bc1 {[%clk 0:01:48]}  bxa3 {[%clk 0:01:53]} 23. bxa3 {[%clk 0:01:49]}  Rb6 {[%clk 0:01:53]} 24. Qf3 {[%clk 0:01:44]}  Rb1 {[%clk 0:01:47]} 25. Qg4 {[%clk 0:01:44]}  Bxa3 {[%clk 0:01:36]} 26. Qxg7 {[%clk 0:01:42]}  Rf8 {[%clk 0:01:30]} 27. Qxh6 {[%clk 0:01:42]}  Bxc1 {[%clk 0:01:28]} 28. Rxc1 {[%clk 0:01:42]}  a3 {[%clk 0:01:27]} 29. Ng4 {[%clk 0:01:20]}  Rg8 {[%clk 0:01:25]} 30. Nf6+ {[%clk 0:01:17]}  Nxf6 {[%clk 0:01:25]} 31. exf6 {[%clk 0:01:18]}  Qb6 {[%clk 0:01:10]} 32. Nf5 {[%clk 0:01:11]}  Kd7 {[%clk 0:01:06]} 33. Ne7 {[%clk 0:01:02]}  Rb8 {[%clk 0:01:00]} 34. Ree1 {[%clk 0:00:58]}  Qxd4 {[%clk 0:00:57]} 35. Rxb1 {[%clk 0:00:57]}  Rxb1 {[%clk 0:00:55]} 36. Rxb1 {[%clk 0:00:57]}  a2 {[%clk 0:00:56]} 37. Rb7+ {[%clk 0:00:39]} 1-0


[Site "https://www.chess.com"]

[Event "Titled Tuesday Blitz August 24 2021"]
[White "Grachev, Boris"]
[Black "Tokman, Ariel"]
[WhiteFideId "4129199"]
[BlackFideId "117420"]
[WhiteElo "2580"]
[BlackElo "2345"]
[Result "0-1"]
[Round "07"]
[TimeControl "180+1"]
[Date "2021.08.24"]
[WhiteClock "0:00:03"]
[BlackClock "0:00:07"]

1. d4 {[%clk 0:03:00]}  Nf6 {[%clk 0:02:20]} 2. Bf4 {[%clk 0:03:00]}  d5 {[%clk 0:02:19]} 3. e3 {[%clk 0:03:00]}  e6 {[%clk 0:02:19]} 4. Nd2 {[%clk 0:02:59]}  Bd6 {[%clk 0:02:20]} 5. Ngf3 {[%clk 0:02:59]}  O-O {[%clk 0:02:19]} 6. Bd3 {[%clk 0:02:58]}  Bxf4 {[%clk 0:02:18]} 7. exf4 {[%clk 0:02:58]}  b6 {[%clk 0:02:16]} 8. Qe2 {[%clk 0:02:57]}  a5 {[%clk 0:02:16]} 9. O-O {[%clk 0:02:54]}  Ba6 {[%clk 0:02:16]} 10. c3 {[%clk 0:02:53]}  c5 {[%clk 0:02:14]} 11. Bxa6 {[%clk 0:02:50]}  Nxa6 {[%clk 0:02:15]} 12. Rfe1 {[%clk 0:02:50]}  Qd6 {[%clk 0:02:07]} 13. g3 {[%clk 0:02:50]}  Rfc8 {[%clk 0:02:02]} 14. Rad1 {[%clk 0:02:48]}  Nb8 {[%clk 0:01:57]} 15. Ne5 {[%clk 0:02:41]}  cxd4 {[%clk 0:01:53]} 16. cxd4 {[%clk 0:02:41]}  Nc6 {[%clk 0:01:53]} 17. Ndf3 {[%clk 0:02:40]}  Ne7 {[%clk 0:01:52]} 18. Ng5 {[%clk 0:02:37]}  Rf8 {[%clk 0:01:44]} 19. Rc1 {[%clk 0:02:21]}  h6 {[%clk 0:01:38]} 20. Ngf3 {[%clk 0:02:18]}  Rfc8 {[%clk 0:01:36]} 21. Qb5 {[%clk 0:02:11]}  Qb4 {[%clk 0:01:17]} 22. a4 {[%clk 0:01:58]}  Nf5 {[%clk 0:01:09]} 23. Nc6 {[%clk 0:01:48]}  Qxb5 {[%clk 0:01:00]} 24. axb5 {[%clk 0:01:49]}  Kf8 {[%clk 0:00:59]} 25. Nfe5 {[%clk 0:01:49]}  Nd6 {[%clk 0:00:55]} 26. g4 {[%clk 0:01:42]}  g5 {[%clk 0:00:28]} 27. fxg5 {[%clk 0:01:43]}  hxg5 {[%clk 0:00:28]} 28. h4 {[%clk 0:01:44]}  Kg7 {[%clk 0:00:12]} 29. hxg5 {[%clk 0:01:39]}  Nfe4 {[%clk 0:00:12]} 30. Nd7 {[%clk 0:01:24]}  Nxg5 {[%clk 0:00:12]} 31. Kg2 {[%clk 0:01:22]}  Rc7 {[%clk 0:00:11]} 32. Nxb6 {[%clk 0:01:09]}  Rh8 {[%clk 0:00:11]} 33. Ne5 {[%clk 0:00:52]}  Rxc1 {[%clk 0:00:12]} 34. Rxc1 {[%clk 0:00:51]}  Nxb5 {[%clk 0:00:12]} 35. f4 {[%clk 0:00:52]}  Ne4 {[%clk 0:00:12]} 36. g5 {[%clk 0:00:49]}  Nxd4 {[%clk 0:00:11]} 37. Rc7 {[%clk 0:00:48]}  Rf8 {[%clk 0:00:10]} 38. Nbd7 {[%clk 0:00:42]}  Rd8 {[%clk 0:00:08]} 39. Nf6 {[%clk 0:00:41]}  Nxf6 {[%clk 0:00:08]} 40. Rxf7+ {[%clk 0:00:41]}  Kg8 {[%clk 0:00:07]} 41. Rxf6 {[%clk 0:00:28]}  Rb8 {[%clk 0:00:07]} 42. g6 {[%clk 0:00:14]}  Rxb2+ {[%clk 0:00:07]} 43. Kh3 {[%clk 0:00:14]}  Rb7 {[%clk 0:00:07]} 44. Kg4 {[%clk 0:00:07]}  Kg7 {[%clk 0:00:08]} 45. Rf7+ {[%clk 0:00:01]}  Rxf7 {[%clk 0:00:08]} 46. gxf7 {[%clk 0:00:02]}  a4 {[%clk 0:00:08]} 47. Nd3 {[%clk 0:00:02]}  a3 {[%clk 0:00:08]} 48. Nb4 {[%clk 0:00:02]}  Kxf7 {[%clk 0:00:06]} 49. Na2 {[%clk 0:00:03]}  Kf6 {[%clk 0:00:06]} 50. Kg3 {[%clk 0:00:03]}  Kf5 {[%clk 0:00:07]} 51. Nc3 {[%clk 0:00:03]}  Nc2 {[%clk 0:00:06]} 52. Na2 {[%clk 0:00:02]}  Ke4 {[%clk 0:00:07]} 53. Nc3+ {[%clk 0:00:02]}  Kd3 {[%clk 0:00:07]} 54. Na2 {[%clk 0:00:03]}  Kc4 {[%clk 0:00:07]} 55. Kg4 {[%clk 0:00:03]}  Nb4 {[%clk 0:00:07]} 56. Nc1 {[%clk 0:00:03]}  Kc3 {[%clk 0:00:07]} 57. Kg5 {[%clk 0:00:02]}  Kc2 {[%clk 0:00:07]} 58. Ne2 {[%clk 0:00:02]}  a2 {[%clk 0:00:08]} 59. Nd4+ {[%clk 0:00:02]}  Kc3 {[%clk 0:00:07]} 60. Ne2+ {[%clk 0:00:02]}  Kd2 {[%clk 0:00:06]} 61. Nd4 {[%clk 0:00:02]}  Kd3 {[%clk 0:00:07]} 62. Nb3 {[%clk 0:00:03]}  Kc3 {[%clk 0:00:07]} 0-1


[Site "https://www.chess.com"]

[Event "Titled Tuesday Blitz August 24 2021"]
[White "Hovhannisyan, Robert"]
[Black "Drozdowski, Kacper"]
[WhiteFideId "13302507"]
[BlackFideId "1136720"]
[WhiteElo "2669"]
[BlackElo "2507"]
[Result "1/2-1/2"]
[Round "07"]
[TimeControl "180+1"]
[Date "2021.08.24"]
[WhiteClock "0:00:37"]
[BlackClock "0:01:00"]

1. Nc3 {[%clk 0:03:00]}  d5 {[%clk 0:02:56]} 2. Nf3 {[%clk 0:03:00]}  Nf6 {[%clk 0:02:53]} 3. d3 {[%clk 0:03:01]}  Nc6 {[%clk 0:02:44]} 4. g3 {[%clk 0:02:56]}  g6 {[%clk 0:02:43]} 5. Bg2 {[%clk 0:02:56]}  Bg7 {[%clk 0:02:44]} 6. O-O {[%clk 0:02:56]}  O-O {[%clk 0:02:44]} 7. e4 {[%clk 0:02:55]}  dxe4 {[%clk 0:02:42]} 8. dxe4 {[%clk 0:02:50]}  Bg4 {[%clk 0:02:42]} 9. h3 {[%clk 0:02:46]}  Bxf3 {[%clk 0:02:34]} 10. Bxf3 {[%clk 0:02:47]}  Nd7 {[%clk 0:02:28]} 11. Nd5 {[%clk 0:02:29]}  e6 {[%clk 0:02:26]} 12. Ne3 {[%clk 0:02:30]}  Nc5 {[%clk 0:02:21]} 13. c3 {[%clk 0:02:21]}  Qd3 {[%clk 0:02:17]} 14. Qxd3 {[%clk 0:02:19]}  Nxd3 {[%clk 0:02:17]} 15. Be2 {[%clk 0:02:18]}  Rfd8 {[%clk 0:02:15]} 16. Rd1 {[%clk 0:02:18]}  Nxc1 {[%clk 0:02:07]} 17. Raxc1 {[%clk 0:02:19]}  Rxd1+ {[%clk 0:01:58]} 18. Rxd1 {[%clk 0:02:18]}  Rd8 {[%clk 0:01:58]} 19. Rxd8+ {[%clk 0:02:14]}  Nxd8 {[%clk 0:01:59]} 20. f4 {[%clk 0:02:15]}  Kf8 {[%clk 0:02:00]} 21. e5 {[%clk 0:02:13]}  Ke7 {[%clk 0:01:59]} 22. h4 {[%clk 0:02:13]}  f6 {[%clk 0:01:58]} 23. exf6+ {[%clk 0:02:13]}  Bxf6 {[%clk 0:01:58]} 24. Kf2 {[%clk 0:02:14]}  Nf7 {[%clk 0:01:56]} 25. a4 {[%clk 0:02:10]}  c6 {[%clk 0:01:52]} 26. h5 {[%clk 0:01:58]}  e5 {[%clk 0:01:49]} 27. hxg6 {[%clk 0:01:53]}  hxg6 {[%clk 0:01:47]} 28. f5 {[%clk 0:01:53]}  gxf5 {[%clk 0:01:28]} 29. Nxf5+ {[%clk 0:01:54]}  Ke6 {[%clk 0:01:28]} 30. g4 {[%clk 0:01:51]}  Nd6 {[%clk 0:01:26]} 31. Nxd6 {[%clk 0:01:23]}  Kxd6 {[%clk 0:01:27]} 32. Kf3 {[%clk 0:01:24]}  Bg5 {[%clk 0:01:24]} 33. Ke4 {[%clk 0:01:23]}  Bc1 {[%clk 0:01:24]} 34. b3 {[%clk 0:01:23]}  Bd2 {[%clk 0:01:23]} 35. c4 {[%clk 0:01:23]}  Ke6 {[%clk 0:01:21]} 36. Bd3 {[%clk 0:01:19]}  a5 {[%clk 0:01:19]} 37. Kf3 {[%clk 0:01:19]}  Kf6 {[%clk 0:01:15]} 38. Bf5 {[%clk 0:00:52]}  b6 {[%clk 0:01:14]} 39. Ke4 {[%clk 0:00:47]}  c5 {[%clk 0:01:13]} 40. Kd5 {[%clk 0:00:44]}  Bb4 {[%clk 0:01:13]} 41. Bd3 {[%clk 0:00:43]}  Kg5 {[%clk 0:01:10]} 42. Be2 {[%clk 0:00:43]}  Kf6 {[%clk 0:01:05]} 43. Bf3 {[%clk 0:00:39]}  Bc3 {[%clk 0:01:03]} 44. Kc6 {[%clk 0:00:39]}  Kg5 {[%clk 0:01:02]} 45. Kxb6 {[%clk 0:00:37]}  Bb4 {[%clk 0:01:01]} 46. Kc6 {[%clk 0:00:37]}  e4 {[%clk 0:01:00]} 1/2-1/2


[Site "https://www.chess.com"]

[Event "Titled Tuesday Blitz August 24 2021"]
[White "Ibadov, Dashgyn"]
[Black "Nazaretyan, Tigran"]
[WhiteFideId "24107514"]
[BlackFideId "24162345"]
[WhiteElo "2102"]
[BlackElo "2167"]
[Result "0-1"]
[Round "07"]
[TimeControl "180+1"]
[Date "2021.08.24"]
[WhiteClock "0:00:29"]
[BlackClock "0:01:02"]

1. e4 {[%clk 0:03:00]}  c5 {[%clk 0:02:59]} 2. Nf3 {[%clk 0:03:00]}  Nc6 {[%clk 0:02:58]} 3. d3 {[%clk 0:02:58]}  g6 {[%clk 0:02:57]} 4. Nbd2 {[%clk 0:02:58]}  Bg7 {[%clk 0:02:57]} 5. g3 {[%clk 0:02:59]}  Nf6 {[%clk 0:02:56]} 6. Bg2 {[%clk 0:02:59]}  d5 {[%clk 0:02:53]} 7. O-O {[%clk 0:02:56]}  O-O {[%clk 0:02:51]} 8. Re1 {[%clk 0:02:56]}  e5 {[%clk 0:02:50]} 9. exd5 {[%clk 0:02:52]}  Nxd5 {[%clk 0:02:49]} 10. Nc4 {[%clk 0:02:53]}  Re8 {[%clk 0:02:46]} 11. a4 {[%clk 0:02:46]}  h6 {[%clk 0:02:33]} 12. c3 {[%clk 0:02:26]}  Qc7 {[%clk 0:02:31]} 13. Nfxe5 {[%clk 0:02:07]}  Nxe5 {[%clk 0:02:22]} 14. Bxd5 {[%clk 0:02:06]}  Bg4 {[%clk 0:02:19]} 15. Qc2 {[%clk 0:01:25]}  Nxc4 {[%clk 0:01:58]} 16. Rxe8+ {[%clk 0:01:22]}  Rxe8 {[%clk 0:01:58]} 17. dxc4 {[%clk 0:01:22]}  Re1+ {[%clk 0:01:56]} 18. Kg2 {[%clk 0:01:23]}  Qe7 {[%clk 0:01:44]} 19. Ra3 {[%clk 0:01:17]}  Bf5 {[%clk 0:01:20]} 20. Qd2 {[%clk 0:00:48]}  Be4+ {[%clk 0:01:16]} 21. Bxe4 {[%clk 0:00:47]}  Qxe4+ {[%clk 0:01:15]} 22. Kh3 {[%clk 0:00:41]}  g5 {[%clk 0:01:10]} 23. Qd8+ {[%clk 0:00:30]}  Kh7 {[%clk 0:01:10]} 24. Be3 {[%clk 0:00:30]}  g4+ {[%clk 0:01:03]} 25. Kh4 {[%clk 0:00:29]}  Qf5 {[%clk 0:01:02]} 0-1


[Site "https://www.chess.com"]

[Event "Titled Tuesday Blitz August 24 2021"]
[White "Idani, Pouya"]
[Black "Kavyev, Ruslan"]
[WhiteFideId "12510130"]
[BlackFideId "34110981"]
[WhiteElo "2610"]
[BlackElo "2172"]
[Result "0-1"]
[Round "07"]
[TimeControl "180+1"]
[Date "2021.08.24"]
[WhiteClock "0:00:04"]
[BlackClock "0:01:21"]

1. e4 {[%clk 0:03:00]}  d5 {[%clk 0:03:00]} 2. exd5 {[%clk 0:02:58]}  Nf6 {[%clk 0:03:00]} 3. Bb5+ {[%clk 0:02:53]}  Bd7 {[%clk 0:03:00]} 4. Bc4 {[%clk 0:02:53]}  Bf5 {[%clk 0:03:01]} 5. Nc3 {[%clk 0:02:47]}  Nbd7 {[%clk 0:03:01]} 6. d3 {[%clk 0:02:41]}  Nb6 {[%clk 0:03:01]} 7. Qf3 {[%clk 0:02:40]}  Bg4 {[%clk 0:02:53]} 8. Qg3 {[%clk 0:02:37]}  Bf5 {[%clk 0:02:47]} 9. Qe5 {[%clk 0:02:27]}  Nxc4 {[%clk 0:02:44]} 10. dxc4 {[%clk 0:02:08]}  Bxc2 {[%clk 0:02:45]} 11. Nge2 {[%clk 0:02:07]}  Bd3 {[%clk 0:02:44]} 12. b3 {[%clk 0:02:03]}  Bxe2 {[%clk 0:02:43]} 13. Qxe2 {[%clk 0:02:03]}  g6 {[%clk 0:02:44]} 14. O-O {[%clk 0:02:02]}  Bg7 {[%clk 0:02:45]} 15. Re1 {[%clk 0:01:55]}  O-O {[%clk 0:02:45]} 16. Ba3 {[%clk 0:01:53]}  Re8 {[%clk 0:02:41]} 17. Rad1 {[%clk 0:01:50]}  Qc8 {[%clk 0:02:22]} 18. Qf3 {[%clk 0:01:43]}  e6 {[%clk 0:02:21]} 19. d6 {[%clk 0:01:38]}  cxd6 {[%clk 0:02:20]} 20. Nb5 {[%clk 0:01:35]}  Qc6 {[%clk 0:02:15]} 21. Nxd6 {[%clk 0:01:20]}  Qxf3 {[%clk 0:02:14]} 22. gxf3 {[%clk 0:01:21]}  Re7 {[%clk 0:02:11]} 23. Nf5 {[%clk 0:01:11]}  Rc7 {[%clk 0:02:11]} 24. Nxg7 {[%clk 0:01:09]}  Kxg7 {[%clk 0:02:11]} 25. Bb2 {[%clk 0:01:09]}  g5 {[%clk 0:02:03]} 26. f4 {[%clk 0:01:05]}  g4 {[%clk 0:02:02]} 27. Re5 {[%clk 0:01:00]}  h6 {[%clk 0:02:02]} 28. f5 {[%clk 0:01:00]}  Re8 {[%clk 0:02:01]} 29. Rde1 {[%clk 0:00:53]}  Rc6 {[%clk 0:02:01]} 30. Rb5 {[%clk 0:00:50]}  b6 {[%clk 0:01:57]} 31. Kg2 {[%clk 0:00:44]}  h5 {[%clk 0:01:54]} 32. fxe6 {[%clk 0:00:44]}  Rcxe6 {[%clk 0:01:53]} 33. Rxe6 {[%clk 0:00:40]}  Rxe6 {[%clk 0:01:53]} 34. Rxh5 {[%clk 0:00:39]}  Kg6 {[%clk 0:01:52]} 35. Re5 {[%clk 0:00:38]}  Rd6 {[%clk 0:01:47]} 36. Re2 {[%clk 0:00:35]}  Nh5 {[%clk 0:01:47]} 37. Be5 {[%clk 0:00:29]}  Re6 {[%clk 0:01:46]} 38. Kf1 {[%clk 0:00:29]}  a6 {[%clk 0:01:39]} 39. Bc7 {[%clk 0:00:26]}  Rc6 {[%clk 0:01:39]} 40. Bg3 {[%clk 0:00:24]}  b5 {[%clk 0:01:37]} 41. cxb5 {[%clk 0:00:21]}  axb5 {[%clk 0:01:38]} 42. Re5 {[%clk 0:00:20]}  f5 {[%clk 0:01:38]} 43. Rxb5 {[%clk 0:00:12]}  f4 {[%clk 0:01:38]} 44. Bh4 {[%clk 0:00:12]}  f3 {[%clk 0:01:36]} 45. Ke1 {[%clk 0:00:11]}  Nf4 {[%clk 0:01:21]} 46. Rg5+ {[%clk 0:00:08]}  Kh6 {[%clk 0:01:21]} 47. Rxg4 {[%clk 0:00:08]}  Ng2+ {[%clk 0:01:22]} 48. Kd2 {[%clk 0:00:05]}  Kh5 {[%clk 0:01:22]} 49. Rg3 {[%clk 0:00:04]}  Nxh4 {[%clk 0:01:22]} 50. a4 {[%clk 0:00:04]}  Re6 {[%clk 0:01:21]} 0-1


[Site "https://www.chess.com"]

[Event "Titled Tuesday Blitz August 24 2021"]
[White "Jakubowski, Krzysztof"]
[Black "Reprintsev, Alexander"]
[WhiteFideId "1112848"]
[BlackFideId "14100541"]
[WhiteElo "2414"]
[BlackElo "2126"]
[Result "1-0"]
[Round "07"]
[TimeControl "180+1"]
[Date "2021.08.24"]
[WhiteClock "0:00:07"]
[BlackClock "0:00:01"]

1. d4 {[%clk 0:03:00]}  d5 {[%clk 0:02:51]} 2. c4 {[%clk 0:02:59]}  e5 {[%clk 0:02:48]} 3. dxe5 {[%clk 0:02:58]}  d4 {[%clk 0:02:48]} 4. a3 {[%clk 0:02:56]}  Nc6 {[%clk 0:02:48]} 5. e3 {[%clk 0:02:55]}  Nge7 {[%clk 0:02:46]} 6. b4 {[%clk 0:02:42]}  Bf5 {[%clk 0:02:27]} 7. b5 {[%clk 0:02:37]}  Nxe5 {[%clk 0:02:24]} 8. exd4 {[%clk 0:02:36]}  Ng4 {[%clk 0:01:27]} 9. h3 {[%clk 0:02:30]}  Nf6 {[%clk 0:01:26]} 10. Nc3 {[%clk 0:02:23]}  a6 {[%clk 0:01:09]} 11. g4 {[%clk 0:02:13]}  Be4 {[%clk 0:00:57]} 12. f3 {[%clk 0:01:49]}  Bg6 {[%clk 0:00:55]} 13. Bf4 {[%clk 0:01:43]}  c6 {[%clk 0:00:38]} 14. bxa6 {[%clk 0:01:32]}  Rxa6 {[%clk 0:00:37]} 15. Nge2 {[%clk 0:01:26]}  h5 {[%clk 0:00:35]} 16. g5 {[%clk 0:01:21]}  Nd7 {[%clk 0:00:35]} 17. Ng3 {[%clk 0:01:12]}  h4 {[%clk 0:00:34]} 18. Nge4 {[%clk 0:01:12]}  Nf5 {[%clk 0:00:34]} 19. c5 {[%clk 0:01:06]}  Ra8 {[%clk 0:00:24]} 20. Bc4 {[%clk 0:00:51]}  Be7 {[%clk 0:00:23]} 21. O-O {[%clk 0:00:51]}  O-O {[%clk 0:00:23]} 22. Ra2 {[%clk 0:00:37]}  b6 {[%clk 0:00:23]} 23. Rd2 {[%clk 0:00:32]}  Qc8 {[%clk 0:00:19]} 24. Nd6 {[%clk 0:00:26]}  Bxd6 {[%clk 0:00:16]} 25. cxd6 {[%clk 0:00:26]}  Re8 {[%clk 0:00:14]} 26. Re1 {[%clk 0:00:25]}  Rxe1+ {[%clk 0:00:13]} 27. Qxe1 {[%clk 0:00:25]}  c5 {[%clk 0:00:13]} 28. d5 {[%clk 0:00:23]}  Rxa3 {[%clk 0:00:12]} 29. Re2 {[%clk 0:00:23]}  Kh7 {[%clk 0:00:11]} 30. Re8 {[%clk 0:00:23]}  Qb7 {[%clk 0:00:11]} 31. Nb5 {[%clk 0:00:20]}  Rxf3 {[%clk 0:00:08]} 32. Bh2 {[%clk 0:00:13]}  Nd4 {[%clk 0:00:07]} 33. Kh1 {[%clk 0:00:12]}  Nxb5 {[%clk 0:00:07]} 34. Bxb5 {[%clk 0:00:11]}  Qxd5 {[%clk 0:00:07]} 35. Kg1 {[%clk 0:00:09]}  Ra3 {[%clk 0:00:02]} 36. Re3 {[%clk 0:00:07]}  Rxe3 {[%clk 0:00:01]} 37. Qxe3 {[%clk 0:00:07]} 1-0


[Site "https://www.chess.com"]